[Event "1st Bangalore GM-Open-A 2024"]
[Site "Bangalore"]
[Date "2024.01.18"]
[Round "1.10"]
[White "Prudhvi Kumar V"]
[Black "Das, Sayantan"]
[Result "1/2-1/2"]
[ECO "A90"]
[WhiteElo "2123"]
[BlackElo "2514"]
[Annotator "TA"]
[PlyCount "149"]
[EventDate "2024.01.20"]
[EventType "swiss"]
[EventCountry "IND"]
[SourceTitle "playchess.com"]
[Source "ChessBase"]
[SourceQuality "1"]
[TimeControl "5400+30"]

{[%evp 21,149,7,15,0,0,0,-4,-4,0,-60,-17,-22,-37,-43,-40,-87,0,-4,0,-174,-48,-17,-16,-105,-67,-67,-60,-58,-54,-343,-242,-242,-254,-248,-255,-334,-322,-328,-269,-262,-261,-292,-277,-270,-281,-285,-223,-227,-227,-221,-216,-212,-212,-225,-25,-24,-36,-34,-27,-153,-27,-139,-98,-143,-57,-66,-56,-161,-54,-54,-54,-54,-54,-54,-54,-54,0,0,0,-2,0,0,0,0,0,0,0,0,0,0,0,0,0,0,0,0,0,0,0,0,0,0,0,0,0,0,0,0,0,0,0,0,0,0,0,0,0,0,0,0,0,0,0,0,0,-5,0,0,0,0]} 1. d4 {[%emt 0:00:05]} d5 {[%emt 0:01:06]} 2. c4 {[%emt 0:00:14]} e6 {[%emt 0:00:15]} 3. Nf3 {[%emt 0:00:27]} c6 {[%emt 0:00:25]} 4. Nbd2 {[%emt 0:03:12]} f5 {[%emt 0:05:48]} 5. g3 {[%emt 0:01:04]} Bd6 {[%emt 0:02:02]} 6. Bg2 {[%emt 0:00:07]} Nd7 {[%emt 0:01:42]} 7. Qc2 {[%emt 0:00:10]} Ngf6 {[%emt 0:02:02]} 8. O-O {[%emt 0:00:04]} O-O {[%emt 0:01:09]} 9. b3 {[%emt 0:00:04]} Qe7 {[%emt 0:03:14]} 10. Bb2 {[%emt 0:00:22]} b6 {[%emt 0:00:47]} 11. Ne5 {[%emt 0:09:30]} Bb7 {[%emt 0:00:49]} 12. cxd5 {[%emt 0:09:24] A90: Dutch Defence: Miscellaneous and Modern Stonewall (with ...Bd6).} cxd5 {[%emt 0:00:14]} 13. Rfc1 {[%emt 0:07:53] [#]} Ne4 $146 {[%emt 0:14:23]} ({Predecessor:} 13... Rac8 14. Qd1 Ne4 15. Nd3 Qg5 16. Nf3 Qh6 17. Rxc8 Rxc8 18. Rc1 Rxc1 19. Bxc1 Qf6 {1-0 Leitner,G (2194)-Kuess,M (2058) AUT-chT 1314 2013 (5.1)}) 14. Ndf3 {[%emt 0:05:43]} Ndf6 {[%emt 0:02:12][%cal Bd7f6,Bf6g4,Bg4f2][%mdl 32]} 15. Nd3 {[%emt 0:11:51]} (15. Nd2 $11) 15... Ng4 {[%emt 0:13:36]} 16. h3 {[%emt 0:10:55] [#]} Ngxf2 {[%emt 0:07:34]} 17. Nxf2 {[%emt 0:00:07]} Bxg3 {[%emt 0:00:10]} 18. Nd3 {[%emt 0:09:30]} (18. Rf1 $15) 18... Rac8 {[%emt 0:07:20]} (18... g5 $1 $17 {[%cal Rg5g4] Threatens to win with ...g4.} 19. Nde5 g4) 19. Qd1 $1 $11 {[%emt 0:03:18]} g5 {[%emt 0:00:08] Hoping for ...g4.} 20. a4 $2 {[%emt 0:04:15]} (20. Rxc8 $1 $11 {and White stays safe.} Rxc8 21. Nfe5) 20... Rxc1 {[%emt 0:05:24]} ({Black should try} 20... g4 $19 {aiming for ...Ba6.} 21. a5 gxf3 22. exf3 Nd6) 21. Bxc1 $15 {[%emt 0:05:01]} g4 {[%emt 0:02:02]} 22. Bf4 {[%emt 0:05:07]} gxf3 {[%emt 0:08:41]} 23. exf3 {[%emt 0:00:33] [#]} Qh4 $1 $36 {[%emt 0:01:03][%mdl 2048] Black is more active.} 24. Bxg3 {[%emt 0:06:16]} Nxg3 {[%emt 0:00:23]} 25. Ne5 $2 {[%emt 0:00:07][%mdl 8192]} (25. Qe1 $1 $15) 25... Qxd4+ {[%emt 0:03:27][%mdl 64] Decoy} 26. Qxd4 {[%emt 0:01:35]} Ne2+ {[%emt 0:00:07]} 27. Kf2 {[%emt 0:00:05]} Nxd4 {[%emt 0:00:04]} 28. Rb1 {[%emt 0:02:25]} f4 {[%emt 0:01:33]} 29. Bf1 {[%emt 0:00:44]} Nc6 {[%emt 0:04:38]} 30. Nxc6 {[%emt 0:00:55]} Bxc6 $19 {[%emt 0:00:02][%mdl 4096] Endgame KRB-KRB} 31. Rc1 {[%emt 0:00:01]} Bb7 {[%emt 0:03:43]} 32. Bd3 {[%emt 0:02:26]} Rc8 {[%emt 0:00:17] Repels b4} 33. Rg1+ {[%emt 0:00:03]} Kh8 {[%emt 0:00:26]} 34. Rg4 {[%emt 0:00:25]} Rc3 {[%emt 0:02:27][%csl LRb3,LRd3]} 35. Ke2 {[%emt 0:00:07]} e5 {[%emt 0:00:06]} (35... Rxb3 $2 {is the wrong capture.} 36. Rxf4 Kg7 37. Bb5) 36. Rg5 {[%emt 0:00:36]} e4 {[%emt 0:03:31]} ({Stronger than} 36... Rxb3 37. Rxe5 Bc6 38. Re7) 37. fxe4 {[%emt 0:00:01]} dxe4 {[%emt 0:00:07]} ({Better is} 37... Rxb3 $19 38. exd5 f3+ 39. Kd2 f2) 38. Bc4 $11 {[%emt 0:00:05][%csl Gc4][%cal Rg5g8]} Rg3 {[%emt 0:01:01]} (38... Rxh3 $2 39. Rg8#) 39. Rf5 {[%emt 0:02:33]} f3+ {[%emt 0:00:19]} 40. Ke3 {[%emt 0:02:23] [#]} (40. Kf2 $1 $11 {was the only way to keep the balance.} Rg2+ 41. Ke3) 40... h6 {[%emt 0:00:21]} (40... Rxh3 $2 41. Rf8+ Kg7 42. Rf7+ Kg6 43. Rxb7 $18) ({Black should play} 40... f2+ $1 $17 41. Kxf2 Rf3+ 42. Rxf3 exf3) 41. Rf6 {[%emt 0:00:39]} (41. a5 $11 {remains equal.}) 41... Kh7 {[%emt 0:00:47]} (41... Rxh3 $2 42. Rf8+ Kh7 43. Rf7+ Kg6 44. Rxb7 $18) 42. h4 {[%emt 0:00:30]} Rg6 {[%emt 0:03:31]} (42... f2+ $17 43. Kxf2 Rf3+ 44. Rxf3 exf3) 43. Rf8 {[%emt 0:00:35]} Rg7 {[%emt 0:00:30]} 44. Bf7 {[%emt 0:00:11] [#]} (44. h5 $15) 44... Rg3 {[%emt 0:01:26]} (44... h5 $1 $19 45. Bc4 Kg6) 45. Be6 $15 {[%emt 0:00:49] [#]} f2+ $1 {[%emt 0:01:15]} 46. Kxf2 {[%emt 0:00:11]} Rf3+ {[%emt 0:00:20]} 47. Rxf3 {[%emt 0:00:08]} exf3 {[%emt 0:00:10] KB-KB} 48. Bg4 {[%emt 0:00:54]} Kg6 {[%emt 0:01:19]} (48... Be4 $15) 49. Bxf3 $11 {[%emt 0:00:01] The position is equal.} Bc8 {[%emt 0:00:32]} 50. b4 {[%emt 0:00:27]} a5 {[%emt 0:00:08]} 51. bxa5 {[%emt 0:00:25]} bxa5 {[%emt 0:00:01]} 52. Bc6 {[%emt 0:00:52]} Kf5 {[%emt 0:00:21]} 53. Kf3 $1 {[%emt 0:00:33]} Ke5 {[%emt 0:00:14]} 54. Ke3 {[%emt 0:00:15]} Bg4 {[%emt 0:00:38]} 55. Be8 {[%emt 0:00:29]} Bd1 {[%emt 0:00:00]} 56. Kd2 Bb3 {[%emt 0:00:23]} 57. Ke3 {[%emt 0:00:40]} Be6 {[%emt 0:00:00]} 58. Bb5 {[%emt 0:00:18]} Bc8 {[%emt 0:01:04]} 59. Be8 Ba6 {[%emt 0:02:43]} 60. Bd7 {[%emt 0:00:36]} Kd6 {[%emt 0:00:00]} 61. Be8 {[%emt 0:01:27]} Kc5 {[%emt 0:00:00]} 62. Kf4 {[%emt 0:01:11]} Kb4 {[%emt 0:00:17]} 63. Kf5 {[%emt 0:00:12] And now Kg6 would win.} Bd3+ {[%emt 0:00:00]} 64. Kg4 {[%emt 0:00:10] Kh5 is the strong threat.} Be2+ {[%emt 0:00:00]} 65. Kf5 $1 {[%emt 0:00:10]} Bd1 {[%emt 0:00:05]} 66. Kg6 {[%emt 0:00:08]} Bxa4 {[%emt 0:00:40]} 67. Bxa4 {[%emt 0:00:06]} Kxa4 {[%emt 0:00:03]} 68. Kxh6 {[%emt 0:00:07] White wants to mate with Kg5. KP-KP} Kb5 {[%emt 0:00:13]} 69. h5 {[%emt 0:00:07] Threatening mate with Kg6.} a4 {[%emt 0:00:03]} 70. Kg7 {[%emt 0:00:29]} a3 {[%emt 0:00:15] ( -> ...a2)} 71. h6 {[%emt 0:00:05]} a2 {[%emt 0:00:00]} 72. h7 {[%emt 0:00:12]} a1=Q+ {[%emt 0:00:17]} 73. Kg8 {[%emt 0:00:28]} Kc6 {[%emt 0:00:16]} 74. h8=Q {[%emt 0:00:00]} Qxh8+ {[%emt 0:00:03]} 75. Kxh8 {[%emt 0:00:02] Black had all chances to win.   Weighted Error Value: White=0.33/Black=0.33} 1/2-1/2

[Event "1st Bangalore GM-Open-A 2024"]
[Site "Bangalore"]
[Date "2024.01.18"]
[Round "1.11"]
[White "Pranav Anand"]
[Black "Sudarshan Bhat"]
[Result "1-0"]
[ECO "B30"]
[WhiteElo "2513"]
[BlackElo "2120"]
[Annotator "TA"]
[PlyCount "151"]
[EventDate "2024.01.20"]
[EventType "swiss"]
[EventCountry "IND"]
[SourceTitle "playchess.com"]
[Source "ChessBase"]
[SourceQuality "1"]
[TimeControl "5400+30"]

{[%evp 9,151,39,47,45,40,43,60,50,40,43,48,23,50,35,73,45,47,41,83,104,97,37,55,47,41,36,27,25,29,26,62,10,11,4,15,0,43,43,43,49,49,49,162,169,137,111,331,100,196,196,196,91,91,91,95,43,38,36,36,36,33,19,22,32,16,0,22,22,80,0,71,0,0,0,32,0,10,0,0,0,32,0,32,0,72,32,32,32,42,0,0,0,0,0,0,0,0,0,0,0,0,0,0,0,0,0,0,0,47,0,37,30,30,0,0,0,0,0,0,0,485,368,539,732,1037,1037,2262,716,659,0,2323,2064,1777,1384,6415,12815,2094,1675,29984,891,636,0,29984,29984]} 1. e4 {[%emt 0:00:03]} c5 {[%emt 0:00:25]} 2. Nf3 {[%emt 0:00:07]} Nc6 {[%emt 0:00:07]} 3. Bb5 {[%emt 0:00:07][%cal Bf1b5,Bb5a4,Ba4b3][%mdl 32]} e5 {[%emt 0:01:47]} 4. O-O {[%emt 0:00:39]} Bd6 {[%emt 0:00:29]} 5. c3 {[%emt 0:00:29]} a6 {[%emt 0:00:23]} 6. Ba4 {[%emt 0:00:05] B30: Sicilian: 2...Nc6 3 Bb5, lines without ...g6.} b5 {[%emt 0:02:38]} 7. Bb3 {[%emt 0:00:08]} Nge7 {[%emt 0:14:35]} 8. d3 {[%emt 0:00:26] White is slightly better.} O-O {[%emt 0:01:05]} 9. Be3 {[%emt 0:00:11] [#]} Ng6 $146 {[%emt 0:02:01]} ({Predecessor:} 9... Bb7 10. Nbd2 Na5 11. Bc2 Ng6 12. d4 cxd4 13. cxd4 Rc8 14. Rc1 Bb8 15. d5 Nc4 16. Nxc4 Rxc4 {½-½ Muzychuk,M (2529)-Harika,D (2505) Beijing Sportaccord blitz (Women) 2014 (3)}) 10. Nbd2 {[%emt 0:00:35]} h6 {[%emt 0:01:57]} 11. Re1 {[%emt 0:08:13]} Re8 {[%emt 0:00:43]} 12. a4 {[%emt 0:03:34]} Rb8 {[%emt 0:00:45]} 13. Bd5 {[%emt 0:03:28]} Qc7 {[%emt 0:05:58]} 14. axb5 {[%emt 0:11:16]} axb5 {[%emt 0:00:34]} 15. h4 {[%emt 0:07:18]} (15. Nh4 $1 $16 {[%cal Rh4g6]} Nce7 16. Nxg6 Nxd5 17. exd5 fxg6 18. Ne4) 15... Be7 {[%emt 0:06:39]} 16. Qb3 {[%emt 0:04:46]} Nd8 {[%emt 0:01:59]} 17. h5 {[%emt 0:08:40]} Nf8 {[%emt 0:01:13]} 18. Ra2 {[%emt 0:08:14]} d6 {[%emt 0:12:21]} 19. Rea1 {[%emt 0:00:56]} Nfe6 {[%emt 0:05:25]} 20. Nf1 {[%emt 0:06:43]} (20. Ra7 $14 Qb6 21. R1a5) 20... Qb6 $11 {[%emt 0:04:15]} 21. Bd2 {[%emt 0:02:26]} Nc7 {[%emt 0:05:48]} 22. Ne3 {[%emt 0:00:22][%cal Od3d4]} Be6 {[%emt 0:01:54]} 23. c4 {[%emt 0:05:43]} b4 {[%emt 0:02:28]} 24. Qa4 {[%emt 0:00:57]} Kf8 {[%emt 0:04:01]} 25. g4 {[%emt 0:07:44]} Bg5 {[%emt 0:04:22]} (25... Bc8 $14) 26. Nxg5 $18 {[%emt 0:03:01]} hxg5 {[%emt 0:00:02]} 27. Qd1 $1 {[%emt 0:02:54]} Bc8 $2 {[%emt 0:04:17]} (27... Kg8 $16 {is a better defense.} 28. Ra7 Nc6 29. Bxc6 Qxc6) 28. Nf5 $2 {[%emt 0:01:43]} (28. Qf3 $18 {and the rest is easy.}) 28... Bxf5 {[%emt 0:03:51]} (28... Nxd5 $16 29. cxd5 Bxf5) 29. gxf5 {[%emt 0:00:13]} (29. exf5 Nxd5 30. cxd5 f6 $11) 29... Nxd5 {[%emt 0:07:02]} 30. Ra6 {[%emt 0:00:18]} (30. exd5 f6 $14) (30. cxd5 $18 {is more deadly.} f6 31. h6 gxh6 32. Ra6) 30... Qc7 $16 {[%emt 0:01:33] aiming for ...Nf4.} 31. cxd5 {[%emt 0:00:14]} Qe7 {[%emt 0:01:17]} 32. Ra7 {[%emt 0:01:03]} ({White should try} 32. f6 $16 gxf6 33. h6) 32... Rb7 $14 {[%emt 0:00:22]} 33. Rxb7 {[%emt 0:04:29]} Nxb7 {[%emt 0:01:53]} 34. Ra7 {[%emt 0:00:02][%cal Oh5h6] h6! is the strong threat.} Rb8 {[%emt 0:00:38]} 35. f6 {[%emt 0:01:15]} gxf6 {[%emt 0:01:13]} (35... Qxf6 $2 36. Qg4 Qe7 37. Bxg5 $18 (37. Qxg5 Qxg5+ 38. Bxg5 f6 $14)) 36. Qg4 {[%emt 0:00:02]} Kg7 {[%emt 0:00:23]} 37. Kg2 {[%emt 0:00:57][%mdl 1024] White has compensation.} Kh6 {[%emt 0:00:19]} 38. Qf5 {[%emt 0:00:39]} Kg7 {[%emt 0:00:47] [#]} 39. Kg3 {[%emt 0:01:38] White is much more active.} ({Better is} 39. d4 $1 $16) 39... Kh6 {[%emt 0:00:15]} (39... Rh8 $11 {keeps the balance.}) 40. Qf3 {[%emt 0:02:11] Really sharp!} (40. d4 $16 {Black must now prevent dxc5.} c4 41. Kg4 (41. Bxb4 exd4 42. Ba5 Kg7 $16)) 40... Kg7 $11 {[%emt 0:00:36]} 41. Qg4 {[%emt 0:00:13]} Kh6 {[%emt 0:00:24]} 42. b3 {[%emt 0:00:19]} Kg7 {[%emt 0:00:29]} 43. Kh2 {[%emt 0:01:09]} Kh6 {[%emt 0:00:14]} 44. Kg2 {[%emt 0:00:03]} Kg7 {[%emt 0:00:17]} 45. Kf1 {[%emt 0:01:02]} Kh6 {[%emt 0:00:05]} 46. Ke2 {[%emt 0:00:05]} Qd8 {[%emt 0:00:50]} (46... Rh8 $11) 47. Qf5 $16 {[%emt 0:00:38]} Qe7 {[%emt 0:00:10] Black is weak on the light squares} 48. f3 {[%emt 0:00:32]} Kg7 {[%emt 0:01:01]} 49. Be3 {[%emt 0:00:59]} Kh6 {[%emt 0:00:16]} 50. Ra6 {[%emt 0:00:28]} Kg7 {[%emt 0:00:58]} 51. Ra7 {[%emt 0:00:58]} Kh6 {[%emt 0:01:08]} 52. Qg4 {[%emt 0:00:01]} Rd8 {[%emt 0:00:37]} 53. Qf5 {[%emt 0:00:37][%cal Oa7b7] Strongly threatening Rxb7!} Rb8 {[%emt 0:00:43]} 54. Ra1 {[%emt 0:00:32]} Rh8 {[%emt 0:00:55]} 55. Bd2 {[%emt 0:01:20]} Kg7 {[%emt 0:00:40]} (55... Kxh5 $2 56. Rh1#) 56. Qg4 {[%emt 0:00:11]} Kh6 {[%emt 0:00:12]} 57. Kf2 {[%emt 0:01:22]} Rd8 {[%emt 0:00:06]} 58. Qf5 {[%emt 0:00:27][%cal Od3d4]} Rg8 {[%emt 0:00:52]} (58... Rh8 $1 $11 {should be considered.}) 59. Ke2 {[%emt 0:01:20]} (59. Ra7 $14 {was preferrable.}) 59... Rd8 {[%emt 0:00:12]} 60. Ra7 $36 {[%emt 0:00:22][%cal Oa7b7][%mdl 2048] Rxb7! would be deadly. Black is under pressure.} Rb8 {[%emt 0:00:08]} 61. Kf2 {[%emt 0:02:18][%cal Od3d4]} (61. d4 $5) 61... Kg7 {[%emt 0:00:25]} 62. Be3 $1 {[%emt 0:00:39]} Kh6 {[%emt 0:00:21]} ({Don't take} 62... Rh8 63. h6+ Kxh6 64. Rxb7 Qxb7 65. Qxf6+ Kh7 66. Qxd6 $14) 63. Ra6 {[%emt 0:00:15]} Rd8 {[%emt 0:00:31]} 64. Rb6 {[%emt 0:00:42][%cal Ob6b7] White threatens Rxb7! and mate.} ({Don't play} 64. Ra7 Rb8 $14) 64... Rd7 $2 {[%emt 0:01:35][%mdl 8192]} (64... Na5 $11) 65. Kg3 {[%emt 0:00:15]} Qd8 {[%emt 0:00:47]} (65... Kg7 $142 66. Ra6 Rd8) 66. Ra6 $18 {[%emt 0:00:16][%cal Oa6a8] And now Ra8! would win.} Qe7 {[%emt 0:00:20] [#]} 67. Ra7 $1 {[%emt 0:00:05]} Kg7 {[%emt 0:00:24]} 68. Kh3 {[%emt 0:01:01]} (68. h6+ $142 Kg8 69. Kg2) 68... Kh6 {[%emt 0:00:09]} 69. Kg3 {[%emt 0:00:08]} (69. Kg4 $142 Rc7 70. Ra8) 69... Kg7 {[%emt 0:00:04] [#]} 70. h6+ $1 {[%emt 0:00:22][%mdl 512]} Kh8 {[%emt 0:01:20]} 71. Kg4 {[%emt 0:00:52]} Rc7 {[%emt 0:00:53]} 72. Ra8+ {[%emt 0:01:04]} Nd8 {[%emt 0:00:04]} 73. Kg3 {[%emt 0:00:11]} Rd7 {[%emt 0:00:53]} 74. Ra1 {[%emt 0:00:17]} (74. Kg2 $142 Rc7 75. f4 exf4 76. Bxf4 Kg8 77. Bc1 c4 78. bxc4 Ra7 79. Rxa7) 74... Nb7 {[%emt 0:00:28]} 75. h7 $2 {[%emt 0:00:13]} ({White has to play} 75. Ra7 $18) 75... Qf8 $2 {[%emt 0:00:37][%mdl 8192]} 76. Qxd7 {[%emt 0:00:12] Weighted Error Value: White=0.17 (very precise) /Black=0.19 (very precise)} 1-0

[Event "1st Bangalore GM-Open-A 2024"]
[Site "Bangalore"]
[Date "2024.01.18"]
[Round "1.12"]
[White "Nguyen Thanh Thuy Tien"]
[Black "Mitrabha, Guha"]
[Result "0-1"]
[ECO "A11"]
[WhiteElo "2118"]
[BlackElo "2504"]
[Annotator "TA"]
[PlyCount "92"]
[EventDate "2024.01.20"]
[EventType "swiss"]
[EventCountry "IND"]
[SourceTitle "playchess.com"]
[Source "ChessBase"]
[SourceQuality "1"]
[TimeControl "5400+30"]

{[%evp 12,92,0,0,0,0,0,0,27,27,25,12,23,15,31,0,38,49,44,18,31,9,37,27,34,0,0,-63,-57,-116,-88,-127,-127,-137,-127,-127,-127,-127,-127,-127,-82,-127,-127,-281,-272,-472,-446,-489,-479,-492,-492,-633,-661,-641,-637,-764,-741,-741,-741,-1257,-1401,-991,-1422,-1415,-1352,-1255,-1248,-1180,-1155,-1684,-1623,-4794,-2601,-4778,-2465,-12821,-11828,-29969,-29974,-29971,-29972,-12825,-11866]} 1. Nf3 {[%emt 0:00:06]} d5 {[%emt 0:17:14]} 2. e3 {[%emt 0:00:54]} Nf6 {[%emt 0:00:07]} 3. c4 {[%emt 0:00:07]} e6 {[%emt 0:00:06]} 4. Nc3 {[%emt 0:00:12]} Bd6 {[%emt 0:00:36]} 5. b3 {[%emt 0:00:28]} c6 {[%emt 0:00:11]} 6. Bb2 {[%emt 0:00:28]} O-O {[%emt 0:00:09]} 7. Be2 {[%emt 0:08:18]} e5 {[%emt 0:01:19] A11: English Opening: 1...c6.} 8. cxd5 {[%emt 0:00:31]} cxd5 {[%emt 0:00:02]} 9. Nb5 {[%emt 0:01:47]} Nc6 {[%emt 0:00:03] The position is equal.} (9... e4 $5 10. Nfd4 Be7 $11) 10. Nxd6 {[%emt 0:00:20]} Qxd6 {[%emt 0:00:04]} 11. d4 {[%emt 0:07:29][%cal Rd4e5]} e4 {[%emt 0:00:34]} 12. Ne5 {[%emt 0:00:32]} Re8 {[%emt 0:00:16] [#]} 13. Rc1 $146 {[%emt 0:03:22]} ({Predecessor:} 13. O-O Ne7 14. Qc1 Nf5 15. Ba3 Qb6 16. Qc5 Qxc5 17. Bxc5 Be6 18. Rfc1 Red8 19. h3 {½-½ Sylvan,J (2348)-Hector,J (2511) Copenhagen Challenge 2014 (4)}) 13... Bf5 {[%emt 0:00:40]} 14. Nxc6 {[%emt 0:06:18]} bxc6 {[%emt 0:01:06]} 15. Qc2 {[%emt 0:00:19]} Re6 {[%emt 0:00:23]} 16. Qc5 {[%emt 0:16:52]} Qb8 {[%emt 0:08:22]} 17. Bc3 {[%emt 0:11:49]} Bg4 {[%emt 0:10:40]} 18. Rc2 {[%emt 0:06:46]} Bxe2 {[%emt 0:00:55]} 19. Kxe2 {[%emt 0:00:09]} (19. Rxe2 $11 Ng4 20. h3) 19... a5 $1 $15 {[%emt 0:03:24]} 20. g3 {[%emt 0:02:02]} (20. Kf1 $15) 20... Qc8 {[%emt 0:01:20]} 21. Kd2 {[%emt 0:06:53]} a4 {[%emt 0:04:55]} ({Stronger than} 21... Qa6 22. Qa3 $15) 22. bxa4 {[%emt 0:03:01]} Rxa4 {[%emt 0:01:10] And now ...Nd7 would win.} ({Weaker is} 22... Qa6 23. Qb4 $15) 23. Bb4 {[%emt 0:02:00] White is weak on the light squares} Nd7 {[%emt 0:03:10][%cal Bf6d7,Bd7b6,Bb6c4][%mdl 32]} 24. Qc3 {[%emt 0:00:07]} Rf6 {[%emt 0:00:49]} 25. Kc1 {[%emt 0:01:52]} Ra8 {[%emt 0:02:24] Black is more active.} 26. Qb3 {[%emt 0:13:36]} h5 {[%emt 0:03:21]} 27. a4 $2 {[%emt 0:01:55] Now White is beyond hope.} (27. Kb2 $17) 27... Rb8 $19 {[%emt 0:00:11]} 28. Qa3 $2 {[%emt 0:04:21]} (28. Rd1) 28... Nb6 {[%emt 0:00:03] White must now prevent ...Nc4.} 29. Be7 {[%emt 0:00:57]} Re6 {[%emt 0:00:26] ...Nc4 is the strong threat.} 30. Bd6 {[%emt 0:00:36]} Ra8 {[%emt 0:00:27]} 31. a5 {[%emt 0:00:52]} Nc4 {[%emt 0:00:02]} 32. Rxc4 {[%emt 0:00:03]} dxc4 {[%emt 0:00:01]} 33. Kd2 {[%emt 0:01:25]} Rf6 {[%emt 0:00:10]} 34. Bf4 {[%emt 0:00:25]} Rf5 {[%emt 0:00:09]} 35. Rb1 {[%emt 0:00:33]} Rfxa5 {[%emt 0:00:31]} 36. Qxa5 {[%emt 0:00:11]} Rxa5 {[%emt 0:00:04]} 37. Rb8 {[%emt 0:00:04] [#]} Qxb8 $1 {[%emt 0:00:06]} 38. Bxb8 {[%emt 0:00:04][%mdl 4096] Endgame KR-KB} Ra2+ {[%emt 0:00:37][%cal Ba5a2,Ba2f2,Bf2f3,Bf3g3][%mdl 32]} 39. Kc3 {[%emt 0:00:01]} Rxf2 {[%emt 0:00:05]} 40. h4 {[%emt 0:00:29]} Rf3 {[%emt 0:01:59]} 41. Bf4 {[%emt 0:00:13]} f6 {[%emt 0:00:03][%cal Of3f4] Strongly threatening ...Rxf4!} 42. Kxc4 {[%emt 0:01:32] [#]} g5 $1 {[%emt 0:01:14][%mdl 64] Deflection} 43. hxg5 {[%emt 0:00:09]} (43. Bc7 gxh4) 43... fxg5 {[%emt 0:00:03]} 44. Bxg5 {[%emt 0:00:07]} Rxg3 {[%emt 0:00:03]} 45. Bf4 {[%emt 0:00:06]} Rf3 {[%emt 0:00:11]} 46. Bg5 {[%emt 0:00:12]} Kf7 {[%emt 0:00:14] Weighted Error Value: White=0.96/Black=0.05 (flawless)} 0-1